[Event "Early-Titled-Tuesday-Blitz-February-13-2024"]
[Site "Chess.com"]
[Date "2024.02.13"]
[Round "11"]
[White "zverr1"]
[Black "omer1997"]
[Result "1-0"]
[WhiteElo "2566"]
[BlackElo "2438"]
[TimeControl "180+1"]
[EndTime "10:05:12 PST"]
[Termination "zverr1 won by resignation"]

1. e4 {[%clk 0:02:57.6]} 1... e5 {[%clk 0:03:00.2]} 2. Nf3 {[%clk 0:02:57.3]}
2... Nc6 {[%clk 0:03:00.4]} 3. Bc4 {[%clk 0:02:56.9]} 3... Bc5 {[%clk
0:02:59.8]} 4. O-O {[%clk 0:02:56.9]} 4... Nf6 {[%clk 0:02:59.4]} 5. d4 {[%clk
0:02:55.8]} 5... exd4 {[%clk 0:02:54.1]} 6. e5 {[%clk 0:02:56.7]} 6... d5 {[%clk
0:02:53.4]} 7. exf6 {[%clk 0:02:53.7]} 7... dxc4 {[%clk 0:02:53.2]} 8. fxg7
{[%clk 0:02:54.6]} 8... Rg8 {[%clk 0:02:53.4]} 9. Re1+ {[%clk 0:02:55.4]} 9...
Be6 {[%clk 0:02:53.5]} 10. Bg5 {[%clk 0:02:56.2]} 10... Qd5 {[%clk 0:02:53.4]}
11. Nc3 {[%clk 0:02:56.4]} 11... Qf5 {[%clk 0:02:53.9]} 12. Ne4 {[%clk
0:02:54.2]} 12... Bb6 {[%clk 0:02:53.4]} 13. Nf6+ {[%clk 0:02:50.4]} 13... Kd8
{[%clk 0:02:04]} 14. Nxg8+ {[%clk 0:02:06]} 14... Kc8 {[%clk 0:02:04]} 15. Nh6
{[%clk 0:02:02.5]} 1-0

[Event "Early-Titled-Tuesday-Blitz-February-13-2024"]
[Site "Chess.com"]
[Date "2024.02.13"]
[Round "11"]
[White "Schachmalanders"]
[Black "Alexchess1984"]
[Result "0-1"]
[WhiteElo "2457"]
[BlackElo "2621"]
[TimeControl "180+1"]
[EndTime "10:05:45 PST"]
[Termination "Alexchess1984 won by resignation"]

1. e4 {[%clk 0:03:00.9]} 1... c5 {[%clk 0:02:59]} 2. Nc3 {[%clk 0:03:00.3]} 2...
g6 {[%clk 0:02:58]} 3. g3 {[%clk 0:03:00.6]} 3... Bg7 {[%clk 0:02:56.9]} 4. Bg2
{[%clk 0:03:01.3]} 4... Nc6 {[%clk 0:02:56.3]} 5. Nge2 {[%clk 0:03:01.9]} 5...
d6 {[%clk 0:02:54]} 6. d3 {[%clk 0:03:02.3]} 6... Rb8 {[%clk 0:02:53.8]} 7. Be3
{[%clk 0:03:01.9]} 7... e6 {[%clk 0:02:51.2]} 8. Qd2 {[%clk 0:03:02.1]} 8... Nd4
{[%clk 0:02:49.4]} 9. O-O {[%clk 0:02:59.3]} 9... b5 {[%clk 0:02:47.7]} 10. f4
{[%clk 0:02:58.4]} 10... Ne7 {[%clk 0:02:46.3]} 11. Nd1 {[%clk 0:02:54.2]} 11...
O-O {[%clk 0:02:37.2]} 12. c3 {[%clk 0:02:54]} 12... Nxe2+ {[%clk 0:02:37.1]}
13. Qxe2 {[%clk 0:02:54.9]} 13... Ba6 {[%clk 0:02:34.9]} 14. Qd2 {[%clk
0:02:49.7]} 14... Qc7 {[%clk 0:02:31.1]} 15. g4 {[%clk 0:02:47.2]} 15... f5
{[%clk 0:02:17.8]} 16. Nf2 {[%clk 0:02:45.7]} 16... Bb7 {[%clk 0:02:12.6]} 17.
d4 {[%clk 0:02:42.7]} 17... c4 {[%clk 0:01:55.2]} 18. g5 {[%clk 0:02:36.2]}
18... fxe4 {[%clk 0:01:52.8]} 19. Nxe4 {[%clk 0:02:35.1]} 19... Nf5 {[%clk
0:01:51.7]} 20. Rae1 {[%clk 0:02:34.8]} 20... Bd5 {[%clk 0:01:42.9]} 21. Qe2
{[%clk 0:02:31.9]} 21... Qc6 {[%clk 0:01:37.4]} 22. Ng3 {[%clk 0:02:30.9]} 22...
Nxe3 {[%clk 0:01:30.5]} 23. Bxd5 {[%clk 0:02:29.3]} 23... Nxd5 {[%clk
0:01:29.9]} 24. Qxe6+ {[%clk 0:02:29.5]} 24... Kh8 {[%clk 0:01:29.6]} 25. f5
{[%clk 0:02:29.2]} 25... Rbe8 {[%clk 0:01:25.9]} 0-1

[Event "Early-Titled-Tuesday-Blitz-February-13-2024"]
[Site "Chess.com"]
[Date "2024.02.13"]
[Round "11"]
[White "KaterynaLagno"]
[Black "temiksmozg"]
[Result "0-1"]
[WhiteElo "2791"]
[BlackElo "2649"]
[TimeControl "180+1"]
[EndTime "10:07:00 PST"]
[Termination "temiksmozg won by resignation"]

1. e4 {[%clk 0:03:00.9]} 1... c5 {[%clk 0:02:59.7]} 2. Nf3 {[%clk 0:03:00.3]}
2... Nc6 {[%clk 0:03:00.2]} 3. Nc3 {[%clk 0:03:00.1]} 3... g6 {[%clk 0:02:57.8]}
4. Bb5 {[%clk 0:02:59.4]} 4... Bg7 {[%clk 0:02:57.1]} 5. d3 {[%clk 0:02:59.3]}
5... d6 {[%clk 0:02:52.5]} 6. e5 {[%clk 0:02:57.4]} 6... Nh6 {[%clk 0:02:36.4]}
7. exd6 {[%clk 0:02:40.3]} 7... exd6 {[%clk 0:02:26.4]} 8. Qe2+ {[%clk
0:02:37.8]} 8... Be6 {[%clk 0:02:18.2]} 9. Ng5 {[%clk 0:02:32.1]} 9... O-O
{[%clk 0:02:14]} 10. Nxe6 {[%clk 0:02:30.4]} 10... fxe6 {[%clk 0:02:14.9]} 11.
Bxc6 {[%clk 0:02:28.8]} 11... bxc6 {[%clk 0:02:14.3]} 12. Qxe6+ {[%clk
0:02:28.8]} 12... Kh8 {[%clk 0:02:14.6]} 13. O-O {[%clk 0:02:27.8]} 13... Nf5
{[%clk 0:02:15]} 14. Ne4 {[%clk 0:02:12.9]} 14... Re8 {[%clk 0:01:13.9]} 15. Qf7
{[%clk 0:02:10.4]} 15... Re7 {[%clk 0:01:09]} 16. Qb3 {[%clk 0:02:07.5]} 16...
Nd4 {[%clk 0:01:08.5]} 17. Qa4 {[%clk 0:02:07.8]} 17... Re5 {[%clk 0:00:56.2]}
18. Ng3 {[%clk 0:01:45.8]} 18... Qh4 {[%clk 0:00:53.6]} 19. c3 {[%clk
0:01:41.5]} 19... Nf3+ {[%clk 0:00:52.4]} 0-1

[Event "Early-Titled-Tuesday-Blitz-February-13-2024"]
[Site "Chess.com"]
[Date "2024.02.13"]
[Round "11"]
[White "esrosenberg"]
[Black "winniethepooh04"]
[Result "0-1"]
[WhiteElo "2426"]
[BlackElo "2531"]
[TimeControl "180+1"]
[EndTime "10:07:04 PST"]
[Termination "winniethepooh04 won by resignation"]

1. d4 {[%clk 0:03:00.9]} 1... e6 {[%clk 0:03:00.9]} 2. Nf3 {[%clk 0:02:55.2]}
2... d5 {[%clk 0:03:01.2]} 3. g3 {[%clk 0:02:53.3]} 3... Nf6 {[%clk 0:03:01.6]}
4. Bg2 {[%clk 0:02:53.8]} 4... Be7 {[%clk 0:03:01.9]} 5. O-O {[%clk 0:02:51.8]}
5... O-O {[%clk 0:03:02.5]} 6. c4 {[%clk 0:02:52.5]} 6... c6 {[%clk 0:03:03]} 7.
Qd3 {[%clk 0:02:45.3]} 7... b6 {[%clk 0:03:02.6]} 8. Nc3 {[%clk 0:02:45.2]} 8...
Bb7 {[%clk 0:03:03.1]} 9. e4 {[%clk 0:02:44.9]} 9... Na6 {[%clk 0:03:03.7]} 10.
a3 {[%clk 0:02:34]} 10... c5 {[%clk 0:02:58.6]} 11. e5 {[%clk 0:02:29.9]} 11...
Ne4 {[%clk 0:02:56.4]} 12. cxd5 {[%clk 0:02:27.4]} 12... Nxc3 {[%clk 0:02:56]}
13. bxc3 {[%clk 0:02:14.4]} 13... Qxd5 {[%clk 0:02:55.6]} 14. Nh4 {[%clk
0:02:13.4]} 14... Qd7 {[%clk 0:02:55.9]} 15. Bxb7 {[%clk 0:02:10.5]} 15... Qxb7
{[%clk 0:02:56.8]} 16. Ng2 {[%clk 0:02:10.7]} 16... cxd4 {[%clk 0:02:55.4]} 17.
cxd4 {[%clk 0:02:10.8]} 17... Nc7 {[%clk 0:02:56]} 18. Be3 {[%clk 0:02:11.2]}
18... Nd5 {[%clk 0:02:56]} 19. Rac1 {[%clk 0:02:11.7]} 19... Rfc8 {[%clk
0:02:53.7]} 20. a4 {[%clk 0:02:11.3]} 20... Rxc1 {[%clk 0:02:52]} 21. Rxc1
{[%clk 0:02:10.8]} 21... Rc8 {[%clk 0:02:52.4]} 22. Nf4 {[%clk 0:02:07.6]} 22...
Nxf4 {[%clk 0:02:46.3]} 23. Bxf4 {[%clk 0:02:06.3]} 23... Rxc1+ {[%clk
0:02:45.5]} 24. Bxc1 {[%clk 0:02:06.3]} 24... Qc6 {[%clk 0:02:45.9]} 25. Qd1
{[%clk 0:02:03.6]} 25... Bb4 {[%clk 0:02:41.4]} 26. Be3 {[%clk 0:02:03.2]} 26...
h6 {[%clk 0:02:33.2]} 27. Qb3 {[%clk 0:01:58.9]} 27... a5 {[%clk 0:02:25.4]} 28.
h4 {[%clk 0:01:58]} 28... b5 {[%clk 0:02:17.1]} 29. axb5 {[%clk 0:01:55.2]}
29... Qxb5 {[%clk 0:02:18]} 30. Bd2 {[%clk 0:01:48.2]} 30... Qb6 {[%clk
0:02:17.5]} 31. Bxb4 {[%clk 0:01:47.6]} 31... axb4 {[%clk 0:02:17.6]} 32. Qb2
{[%clk 0:01:42.9]} 32... b3 {[%clk 0:02:16.9]} 33. Kf1 {[%clk 0:01:42.9]} 33...
Qa6+ {[%clk 0:02:06.6]} 34. Ke1 {[%clk 0:01:22.1]} 34... Qa2 {[%clk 0:02:05.9]}
0-1

[Event "Early-Titled-Tuesday-Blitz-February-13-2024"]
[Site "Chess.com"]
[Date "2024.02.13"]
[Round "11"]
[White "Witik"]
[Black "JEIGOTH"]
[Result "1-0"]
[WhiteElo "2655"]
[BlackElo "2306"]
[TimeControl "180+1"]
[EndTime "10:07:41 PST"]
[Termination "Witik won by checkmate"]

1. b4 {[%clk 0:02:55.9]} 1... e5 {[%clk 0:02:52.5]} 2. Bb2 {[%clk 0:02:55]} 2...
d6 {[%clk 0:02:53.1]} 3. c4 {[%clk 0:02:52.7]} 3... Nd7 {[%clk 0:02:53.3]} 4. g3
{[%clk 0:02:50.2]} 4... Ngf6 {[%clk 0:02:53.6]} 5. Bg2 {[%clk 0:02:50.5]} 5...
c6 {[%clk 0:02:53.3]} 6. Nf3 {[%clk 0:02:46.2]} 6... Be7 {[%clk 0:02:51.3]} 7.
O-O {[%clk 0:02:45.3]} 7... O-O {[%clk 0:02:48.5]} 8. Nc3 {[%clk 0:02:45.1]}
8... a5 {[%clk 0:02:48.1]} 9. b5 {[%clk 0:02:44.4]} 9... Nc5 {[%clk 0:02:46.7]}
10. bxc6 {[%clk 0:02:36]} 10... bxc6 {[%clk 0:02:47.6]} 11. d4 {[%clk
0:02:36.6]} 11... Nce4 {[%clk 0:02:37.5]} 12. dxe5 {[%clk 0:02:34.7]} 12... dxe5
{[%clk 0:02:34.7]} 13. Nxe5 {[%clk 0:02:27.7]} 13... Nxc3 {[%clk 0:02:29.8]} 14.
Bxc3 {[%clk 0:02:26]} 14... Qc7 {[%clk 0:02:30.1]} 15. Nxc6 {[%clk 0:02:22]}
15... Ra6 {[%clk 0:02:29.8]} 16. Be5 {[%clk 0:02:09.6]} 16... Rxc6 {[%clk
0:02:12]} 17. Bxc7 {[%clk 0:02:08.4]} 17... Rxc7 {[%clk 0:02:12.9]} 18. Qd4
{[%clk 0:01:51.5]} 18... Bc5 {[%clk 0:02:07.2]} 19. Qe5 {[%clk 0:01:45.6]} 19...
Bb6 {[%clk 0:01:58.1]} 20. Rab1 {[%clk 0:01:42.3]} 20... Nd7 {[%clk 0:01:54.6]}
21. Qd6 {[%clk 0:01:40]} 21... Rxc4 {[%clk 0:01:38.6]} 22. Rxb6 {[%clk
0:01:23.6]} 22... Nxb6 {[%clk 0:01:38.5]} 23. Qxb6 {[%clk 0:01:24.2]} 23... a4
{[%clk 0:01:38.9]} 24. h4 {[%clk 0:01:17.6]} 24... Be6 {[%clk 0:01:37]} 25. Rd1
{[%clk 0:01:07.5]} 25... Rc2 {[%clk 0:01:35.9]} 26. Rd8 {[%clk 0:01:05.7]} 26...
Rc8 {[%clk 0:01:31]} 27. Rxf8+ {[%clk 0:01:03.4]} 27... Kxf8 {[%clk 0:01:31.9]}
28. Bd5 {[%clk 0:00:58.9]} 28... Rc1+ {[%clk 0:01:17.4]} 29. Kh2 {[%clk
0:00:57]} 29... Bxd5 {[%clk 0:01:15.1]} 30. Qd8# {[%clk 0:00:56.8]} 1-0

[Event "Early-Titled-Tuesday-Blitz-February-13-2024"]
[Site "Chess.com"]
[Date "2024.02.13"]
[Round "11"]
[White "Chesstiger64"]
[Black "Attacker_2006"]
[Result "0-1"]
[WhiteElo "2329"]
[BlackElo "2481"]
[TimeControl "180+1"]
[EndTime "10:07:47 PST"]
[Termination "Attacker_2006 won by resignation"]

1. d4 {[%clk 0:02:55.9]} 1... e6 {[%clk 0:02:55.9]} 2. Nf3 {[%clk 0:02:56]} 2...
Nf6 {[%clk 0:02:56]} 3. Nbd2 {[%clk 0:02:54.6]} 3... b6 {[%clk 0:02:53.2]} 4. e4
{[%clk 0:02:54.5]} 4... Bb7 {[%clk 0:02:51.5]} 5. Bd3 {[%clk 0:02:54.8]} 5... d5
{[%clk 0:02:48.3]} 6. e5 {[%clk 0:02:54.6]} 6... Nfd7 {[%clk 0:02:47.7]} 7. O-O
{[%clk 0:02:51.2]} 7... c5 {[%clk 0:02:47.7]} 8. c3 {[%clk 0:02:51.6]} 8... Nc6
{[%clk 0:02:46.5]} 9. a3 {[%clk 0:02:51.1]} 9... a5 {[%clk 0:02:37.8]} 10. Qe2
{[%clk 0:02:50.8]} 10... g5 {[%clk 0:02:32.6]} 11. h3 {[%clk 0:02:48.6]} 11...
h5 {[%clk 0:02:28.6]} 12. Nh2 {[%clk 0:02:48.1]} 12... cxd4 {[%clk 0:02:21.9]}
13. f4 {[%clk 0:02:48]} 13... dxc3 {[%clk 0:02:18.1]} 14. bxc3 {[%clk
0:02:48.2]} 14... gxf4 {[%clk 0:02:15]} 15. Ndf3 {[%clk 0:02:48]} 15... Bc5+
{[%clk 0:01:55]} 16. Kh1 {[%clk 0:02:47.3]} 16... d4 {[%clk 0:01:49.9]} 17. c4
{[%clk 0:02:37.4]} 17... Rg8 {[%clk 0:01:32]} 18. Bxf4 {[%clk 0:02:36.4]} 18...
Qc7 {[%clk 0:01:28.5]} 19. Ng5 {[%clk 0:02:35]} 19... Ncxe5 {[%clk 0:01:19.1]}
20. Qxh5 {[%clk 0:02:26.3]} 20... O-O-O {[%clk 0:01:13.2]} 21. Be4 {[%clk
0:02:18.3]} 21... f6 {[%clk 0:00:57.5]} 22. Bxb7+ {[%clk 0:01:40]} 22... Qxb7
{[%clk 0:00:52.8]} 23. Ngf3 {[%clk 0:01:39.9]} 23... d3 {[%clk 0:00:47.9]} 24.
Rad1 {[%clk 0:01:26.5]} 24... Qe4 {[%clk 0:00:43.6]} 25. Bxe5 {[%clk 0:01:23.1]}
25... Nxe5 {[%clk 0:00:40.3]} 26. Qf7 {[%clk 0:01:23]} 26... Nxf7 {[%clk
0:00:36.4]} 0-1

[Event "Early-Titled-Tuesday-Blitz-February-13-2024"]
[Site "Chess.com"]
[Date "2024.02.13"]
[Round "11"]
[White "Zq1"]
[Black "manitodeplomo"]
[Result "1-0"]
[WhiteElo "2515"]
[BlackElo "2638"]
[TimeControl "180+1"]
[EndTime "10:07:54 PST"]
[Termination "Zq1 won by resignation"]

1. d4 {[%clk 0:03:00.9]} 1... Nf6 {[%clk 0:02:56.5]} 2. c4 {[%clk 0:03:00.6]}
2... e6 {[%clk 0:02:56.8]} 3. Nf3 {[%clk 0:02:59.6]} 3... b6 {[%clk 0:02:55.4]}
4. g3 {[%clk 0:02:57.9]} 4... Bb7 {[%clk 0:02:52.5]} 5. Bg2 {[%clk 0:02:52.9]}
5... d5 {[%clk 0:02:47.5]} 6. cxd5 {[%clk 0:02:48.7]} 6... Nxd5 {[%clk
0:02:46.5]} 7. O-O {[%clk 0:02:47.1]} 7... Be7 {[%clk 0:02:41.3]} 8. Nc3 {[%clk
0:02:39.3]} 8... Nxc3 {[%clk 0:02:33.8]} 9. bxc3 {[%clk 0:02:38.9]} 9... O-O
{[%clk 0:02:33.7]} 10. Qc2 {[%clk 0:02:36.6]} 10... Qc8 {[%clk 0:01:56.4]} 11.
Bg5 {[%clk 0:02:08.3]} 11... Bd6 {[%clk 0:01:46]} 12. e4 {[%clk 0:02:04]} 12...
c5 {[%clk 0:01:43.8]} 13. e5 {[%clk 0:01:56.3]} 13... Bc7 {[%clk 0:01:41.8]} 14.
Be7 {[%clk 0:01:47.2]} 14... Re8 {[%clk 0:01:41]} 15. Ng5 {[%clk 0:01:45.2]}
15... g6 {[%clk 0:01:41]} 16. Bxb7 {[%clk 0:01:32.2]} 16... Qxb7 {[%clk
0:01:41.9]} 17. Bf6 {[%clk 0:01:21.4]} 17... Nd7 {[%clk 0:01:32.1]} 18. Ne4
{[%clk 0:01:14]} 18... Rac8 {[%clk 0:01:23.4]} 19. Qd2 {[%clk 0:01:09.4]} 19...
Nxf6 {[%clk 0:00:53.4]} 20. exf6 {[%clk 0:01:02.2]} 20... Kh8 {[%clk 0:00:39.7]}
21. Qh6 {[%clk 0:00:58.6]} 1-0

[Event "Early-Titled-Tuesday-Blitz-February-13-2024"]
[Site "Chess.com"]
[Date "2024.02.13"]
[Round "11"]
[White "Yaacovn"]
[Black "AlexPapasimakopoulos"]
[Result "0-1"]
[WhiteElo "2912"]
[BlackElo "2754"]
[TimeControl "180+1"]
[EndTime "10:08:02 PST"]
[Termination "AlexPapasimakopoulos won by resignation"]

1. d4 {[%clk 0:03:00.9]} 1... d5 {[%clk 0:02:56.8]} 2. e3 {[%clk 0:03:01.3]}
2... Bf5 {[%clk 0:02:55.4]} 3. c4 {[%clk 0:03:00.5]} 3... e6 {[%clk 0:02:54]} 4.
Qb3 {[%clk 0:03:00]} 4... b6 {[%clk 0:02:52.5]} 5. Nc3 {[%clk 0:03:00]} 5... c6
{[%clk 0:02:52.4]} 6. cxd5 {[%clk 0:02:56.8]} 6... exd5 {[%clk 0:02:51.8]} 7.
Nf3 {[%clk 0:02:56.8]} 7... Bd6 {[%clk 0:02:47.2]} 8. Ne5 {[%clk 0:02:51.5]}
8... Ne7 {[%clk 0:02:42.5]} 9. e4 {[%clk 0:02:42.8]} 9... Be6 {[%clk 0:02:39.6]}
10. exd5 {[%clk 0:02:38.6]} 10... Nxd5 {[%clk 0:02:39.6]} 11. Bc4 {[%clk
0:02:37]} 11... O-O {[%clk 0:02:30.3]} 12. O-O {[%clk 0:02:36.1]} 12... Nxc3
{[%clk 0:02:22.2]} 13. bxc3 {[%clk 0:02:34.1]} 13... Bxc4 {[%clk 0:02:10.7]} 14.
Nxc4 {[%clk 0:02:33.6]} 14... Bc7 {[%clk 0:02:07.9]} 15. Ba3 {[%clk 0:02:31.9]}
15... Re8 {[%clk 0:02:07.3]} 16. Rae1 {[%clk 0:02:29.7]} 16... Nd7 {[%clk
0:02:05.1]} 17. f4 {[%clk 0:02:29.3]} 17... Rxe1 {[%clk 0:01:49]} 18. Rxe1
{[%clk 0:02:29.2]} 18... Bxf4 {[%clk 0:01:48.1]} 19. Re7 {[%clk 0:02:26.3]}
19... c5 {[%clk 0:01:23.8]} 20. Rxf7 {[%clk 0:02:23.8]} 20... Qh4 {[%clk
0:01:03.2]} 21. Rxf4 {[%clk 0:02:05.2]} 21... Qxf4 {[%clk 0:01:02.4]} 22. Ne5+
{[%clk 0:01:57]} 22... Kh8 {[%clk 0:00:58.4]} 23. Nf7+ {[%clk 0:01:24.6]} 23...
Kg8 {[%clk 0:00:58]} 24. Qd5 {[%clk 0:01:17.5]} 24... Qe3+ {[%clk 0:00:40.5]}
25. Kf1 {[%clk 0:01:17.6]} 25... Rf8 {[%clk 0:00:37.7]} 0-1

[Event "Early-Titled-Tuesday-Blitz-February-13-2024"]
[Site "Chess.com"]
[Date "2024.02.13"]
[Round "11"]
[White "LiadCuba"]
[Black "baki83"]
[Result "0-1"]
[WhiteElo "2518"]
[BlackElo "2848"]
[TimeControl "180+1"]
[EndTime "10:08:07 PST"]
[Termination "baki83 won by resignation"]

1. d4 {[%clk 0:03:00.9]} 1... d5 {[%clk 0:02:58.8]} 2. c4 {[%clk 0:03:00.9]}
2... dxc4 {[%clk 0:02:59.3]} 3. Nf3 {[%clk 0:02:59.5]} 3... Nf6 {[%clk
0:02:58.9]} 4. e3 {[%clk 0:02:59.7]} 4... e6 {[%clk 0:02:59.1]} 5. Bxc4 {[%clk
0:03:00.1]} 5... a6 {[%clk 0:02:59.6]} 6. O-O {[%clk 0:02:59.9]} 6... c5 {[%clk
0:02:59.9]} 7. Qe2 {[%clk 0:02:55.2]} 7... b5 {[%clk 0:02:58.9]} 8. Bd3 {[%clk
0:02:55.2]} 8... Bb7 {[%clk 0:02:57.5]} 9. Nc3 {[%clk 0:02:53.2]} 9... Nbd7
{[%clk 0:02:56.8]} 10. Rd1 {[%clk 0:02:51.8]} 10... Qc7 {[%clk 0:02:52.5]} 11.
Bd2 {[%clk 0:02:45.9]} 11... Bd6 {[%clk 0:02:43.6]} 12. Rac1 {[%clk 0:02:40.3]}
12... c4 {[%clk 0:02:39.3]} 13. Bb1 {[%clk 0:02:39.8]} 13... O-O {[%clk
0:02:32.8]} 14. h3 {[%clk 0:02:32.3]} 14... e5 {[%clk 0:02:30.8]} 15. dxe5
{[%clk 0:02:24.9]} 15... Nxe5 {[%clk 0:02:30.5]} 16. Nxe5 {[%clk 0:02:25.3]}
16... Bxe5 {[%clk 0:02:31.4]} 17. e4 {[%clk 0:02:20.2]} 17... Rfe8 {[%clk
0:02:30.1]} 18. Be3 {[%clk 0:02:16.6]} 18... Bxc3 {[%clk 0:02:25.6]} 19. Rxc3
{[%clk 0:02:16.7]} 19... Bxe4 {[%clk 0:02:25.4]} 20. Bxe4 {[%clk 0:02:05.2]}
20... Nxe4 {[%clk 0:02:24.8]} 21. Rcc1 {[%clk 0:02:05.4]} 21... Qe5 {[%clk
0:02:19]} 22. Rd7 {[%clk 0:02:02.1]} 22... Nxf2 {[%clk 0:02:03.9]} 23. Qf3
{[%clk 0:01:43.1]} 23... Qe6 {[%clk 0:01:48.7]} 24. Rc7 {[%clk 0:01:24.8]} 24...
Nd3 {[%clk 0:01:34.7]} 25. Rf1 {[%clk 0:01:20.9]} 25... Qxe3+ {[%clk 0:01:34]}
26. Qxe3 {[%clk 0:01:21.8]} 26... Rxe3 {[%clk 0:01:34.1]} 27. Rfxf7 {[%clk
0:01:22.3]} 27... Rg3 {[%clk 0:01:34.1]} 28. Kh2 {[%clk 0:01:20]} 28... Rg6
{[%clk 0:01:33]} 29. g4 {[%clk 0:01:15.9]} 29... h6 {[%clk 0:01:32.3]} 30. Kg3
{[%clk 0:01:15.8]} 30... Kh7 {[%clk 0:01:32.4]} 31. h4 {[%clk 0:01:14.5]} 31...
Ne5 {[%clk 0:01:31]} 32. Rf4 {[%clk 0:01:14.2]} 32... Rg8 {[%clk 0:01:28]} 33.
Re4 {[%clk 0:01:10.6]} 33... Nd3 {[%clk 0:01:26.7]} 34. b3 {[%clk 0:01:05.4]}
34... cxb3 {[%clk 0:01:21.4]} 35. axb3 {[%clk 0:01:06.3]} 35... Rd6 {[%clk
0:01:19.2]} 36. g5 {[%clk 0:01:02.5]} 36... a5 {[%clk 0:01:15]} 37. Rb7 {[%clk
0:00:56.9]} 37... Nc5 {[%clk 0:01:11.7]} 0-1

[Event "Early-Titled-Tuesday-Blitz-February-13-2024"]
[Site "Chess.com"]
[Date "2024.02.13"]
[Round "11"]
[White "kikoveiga"]
[Black "Helenita13"]
[Result "0-1"]
[WhiteElo "2521"]
[BlackElo "2434"]
[TimeControl "180+1"]
[EndTime "10:08:19 PST"]
[Termination "Helenita13 won by resignation"]

1. c4 {[%clk 0:03:00.9]} 1... e5 {[%clk 0:02:56.7]} 2. a3 {[%clk 0:02:57.9]}
2... c6 {[%clk 0:02:52.4]} 3. Nf3 {[%clk 0:02:52.2]} 3... e4 {[%clk 0:02:52.1]}
4. Nd4 {[%clk 0:02:52.3]} 4... d5 {[%clk 0:02:52.2]} 5. e3 {[%clk 0:02:52.6]}
5... Nf6 {[%clk 0:02:51.8]} 6. cxd5 {[%clk 0:02:50.4]} 6... cxd5 {[%clk
0:02:50.7]} 7. d3 {[%clk 0:02:51.3]} 7... Bd6 {[%clk 0:02:50.1]} 8. dxe4 {[%clk
0:02:46.8]} 8... Nxe4 {[%clk 0:02:49.7]} 9. Nd2 {[%clk 0:02:43.8]} 9... O-O
{[%clk 0:02:42.7]} 10. Bd3 {[%clk 0:02:43.6]} 10... Nc5 {[%clk 0:02:36.4]} 11.
Bc2 {[%clk 0:02:42.6]} 11... Nc6 {[%clk 0:02:36.4]} 12. N2f3 {[%clk 0:02:39.5]}
12... Ne4 {[%clk 0:02:35.3]} 13. O-O {[%clk 0:02:37.8]} 13... Bg4 {[%clk
0:02:33.5]} 14. Nxc6 {[%clk 0:02:34]} 14... bxc6 {[%clk 0:02:33.2]} 15. h3
{[%clk 0:02:34.3]} 15... Bh5 {[%clk 0:02:31.3]} 16. g4 {[%clk 0:02:21.8]} 16...
Bg6 {[%clk 0:02:23.1]} 17. Nd4 {[%clk 0:02:21.1]} 17... Qh4 {[%clk 0:02:20.8]}
18. Kg2 {[%clk 0:02:13.9]} 18... h5 {[%clk 0:01:57.7]} 19. Nf5 {[%clk
0:01:39.8]} 19... Bxf5 {[%clk 0:01:52.1]} 20. gxf5 {[%clk 0:01:40.7]} 20... Qg5+
{[%clk 0:01:28.9]} 21. Kh1 {[%clk 0:01:39]} 21... Qxf5 {[%clk 0:01:29.1]} 22.
Kg2 {[%clk 0:01:31.5]} 22... Qg5+ {[%clk 0:01:13.4]} 23. Kh1 {[%clk 0:01:31.2]}
23... Qh4 {[%clk 0:01:10.5]} 24. Kg2 {[%clk 0:01:30.7]} 24... Rae8 {[%clk
0:01:01.8]} 25. Bxe4 {[%clk 0:01:11.2]} 25... Rxe4 {[%clk 0:00:55.3]} 26. f4
{[%clk 0:01:10.7]} 26... Re6 {[%clk 0:00:49.7]} 27. Rf3 {[%clk 0:01:09]} 27...
Rg6+ {[%clk 0:00:46.1]} 28. Kf1 {[%clk 0:01:07.6]} 28... Rg3 {[%clk 0:00:45.2]}
29. Bd2 {[%clk 0:01:01.2]} 29... Qxh3+ {[%clk 0:00:45.1]} 30. Ke2 {[%clk
0:01:00.3]} 30... Rxf3 {[%clk 0:00:42.3]} 31. Qg1 {[%clk 0:00:56.7]} 31... Rg3
{[%clk 0:00:40.3]} 0-1

[Event "Early-Titled-Tuesday-Blitz-February-13-2024"]
[Site "Chess.com"]
[Date "2024.02.13"]
[Round "11"]
[White "wqws"]
[Black "andrzej"]
[Result "1-0"]
[WhiteElo "2667"]
[BlackElo "2508"]
[TimeControl "180+1"]
[EndTime "10:08:20 PST"]
[Termination "wqws won on time"]

1. e4 {[%clk 0:03:00.9]} 1... e5 {[%clk 0:02:59.8]} 2. Nf3 {[%clk 0:03:00.4]}
2... Nf6 {[%clk 0:03:00.1]} 3. d4 {[%clk 0:02:59.7]} 3... Nxe4 {[%clk
0:02:59.5]} 4. Bd3 {[%clk 0:03:00.2]} 4... d5 {[%clk 0:02:59.7]} 5. Nxe5 {[%clk
0:03:00.8]} 5... Bd6 {[%clk 0:03:00.4]} 6. O-O {[%clk 0:03:00.3]} 6... O-O
{[%clk 0:03:00.4]} 7. Nc3 {[%clk 0:03:00.8]} 7... Nxc3 {[%clk 0:02:59]} 8. bxc3
{[%clk 0:03:01.5]} 8... Nd7 {[%clk 0:02:59.7]} 9. f4 {[%clk 0:02:58]} 9... c5
{[%clk 0:02:55.4]} 10. g4 {[%clk 0:02:54]} 10... c4 {[%clk 0:02:50.6]} 11. Be2
{[%clk 0:02:53.5]} 11... Nf6 {[%clk 0:02:49.7]} 12. Bf3 {[%clk 0:02:51.8]} 12...
Qc7 {[%clk 0:02:33.6]} 13. Qe2 {[%clk 0:02:45.7]} 13... Re8 {[%clk 0:02:30]} 14.
Qg2 {[%clk 0:02:45.7]} 14... b5 {[%clk 0:02:17.9]} 15. f5 {[%clk 0:02:33.2]}
15... Bxe5 {[%clk 0:02:07.4]} 16. dxe5 {[%clk 0:02:33.2]} 16... Qxe5 {[%clk
0:02:07.5]} 17. Bd2 {[%clk 0:02:30.3]} 17... Bb7 {[%clk 0:01:57.8]} 18. Rae1
{[%clk 0:02:23.9]} 18... Ne4 {[%clk 0:01:57.8]} 19. Bxe4 {[%clk 0:02:21.3]}
19... dxe4 {[%clk 0:01:57.8]} 20. Be3 {[%clk 0:02:21.8]} 20... Qxc3 {[%clk
0:01:45.2]} 21. f6 {[%clk 0:02:19.8]} 21... Re6 {[%clk 0:01:21.4]} 22. fxg7
{[%clk 0:02:17.2]} 22... Rg6 {[%clk 0:01:21.4]} 23. h3 {[%clk 0:02:11]} 23... h5
{[%clk 0:01:20.7]} 24. g5 {[%clk 0:01:59.7]} 24... Rxg7 {[%clk 0:01:19.1]} 25.
Qf2 {[%clk 0:01:51.7]} 25... Rd8 {[%clk 0:01:13]} 26. Rd1 {[%clk 0:01:51.6]}
26... Qa5 {[%clk 0:00:59.8]} 27. Qf6 {[%clk 0:01:46.8]} 27... Rxd1 {[%clk
0:00:43.6]} 28. Rxd1 {[%clk 0:01:46.3]} 28... Kh7 {[%clk 0:00:42.3]} 29. Qf5+
{[%clk 0:01:43.3]} 29... Kg8 {[%clk 0:00:39.7]} 30. Qf6 {[%clk 0:01:40.2]} 30...
Kh7 {[%clk 0:00:18.6]} 31. Bd4 {[%clk 0:01:39.9]} 1-0